[Event "Turkish Youth Championships 2023"]
[Site "Samsun"]
[Date "2023.05.22"]
[Round "6.17"]
[White "Yildiz, Elif Zeren"]
[Black "Tonoglu, Engin Erdem"]
[Result "1-0"]
[WhiteElo "1722"]
[BlackElo "1404"]
[Annotator "COMBH"]
[PlyCount "87"]
[EventDate "2023.05.19"]
[EventType "swiss"]
[EventCountry "TUR"]
[TimeControl "5400+30"]
[BlackClock "0:00:19"]

1. e4 {[%emt 0:01:00]} e5 {[%emt 0:01:00]} 2. Nf3 {[%emt 0:00:30]} Nc6 {[%emt 0:00:30]} 3. Bc4 {[%emt 0:00:30]} Bc5 {[%emt 0:00:30]} 4. O-O {[%emt 0:00:00]} d6 {[%emt 0:00:00]} 5. c3 {[%emt 0:00:00]} Bg4 {[%emt 0:01:00]} 6. b4 {[%emt 0:04:30]} Bb6 {[%emt 0:01:30]} 7. a4 {[%emt 0:01:30]} a6 {[%emt 0:00:30]} 8. d3 {[%emt 0:01:30]} Qf6 {[%emt 0:09:30]} 9. Bg5 {[%emt 0:09:30]} Qg6 {[%emt 0:00:30]} 10. Nbd2 {[%emt 0:00:30]} h6 {[%emt 0:01:30]} 11. Be3 {[%emt 0:02:30]} Bxe3 {[%emt 0:03:30]} 12. fxe3 {[%emt 0:00:30]} Nf6 {[%emt 0:05:30]} 13. Qe1 {[%emt 0:04:30]} h5 {[%emt 0:18:30]} 14. Qh4 {[%emt 0:07:30]} Nh7 {[%emt 0:19:30]} 15. Rae1 {[%emt 0:10:30]} Be6 {[%emt 0:02:30]} 16. d4 {[%emt 0:06:30]} Bxc4 {[%emt 0:01:30]} 17. Nxc4 {[%emt 0:00:30]} f6 {[%emt 0:00:30]} 18. Ncd2 {[%emt 0:04:30]} Qg4 {[%emt 0:06:30]} 19. Qf2 {[%emt 0:01:30]} g5 {[%emt 0:00:30]} 20. Kh1 {[%emt 0:02:30]} Qd7 {[%emt 0:05:30]} 21. Qe2 {[%emt 0:02:30]} Ne7 {[%emt 0:02:01]} 22. dxe5 {[%emt 0:08:30]} dxe5 {[%emt 0:01:13]} 23. Nxe5 {[%emt 0:01:30]} fxe5 {[%emt 0:00:02]} 24. Qxh5+ {[%emt 0:00:00]} Kd8 {[%emt 0:00:24]} 25. Nc4 {[%emt 0:00:00]} Qe8 {[%emt 0:03:41]} 26. Rd1+ {[%emt 0:03:30]} Kc8 {[%emt 0:00:13]} 27. Qg4+ {[%emt 0:00:30]} Kb8 {[%emt 0:00:47]} 28. Nxe5 {[%emt 0:00:30]} Ng6 {[%emt 0:04:30]} 29. Nd7+ {[%emt 0:08:28]} Ka7 {[%emt 0:00:02]} 30. Qf5 {[%emt 0:01:54]} Rc8 {[%emt 0:00:43]} 31. b5 {[%emt 0:04:50]} Nhf8 {[%emt 0:02:27]} 32. Nf6 {[%emt 0:03:16]} Qe5 {[%emt 0:01:09]} 33. Ng4 {[%emt 0:00:03]} Qe6 {[%emt 0:01:43]} 34. bxa6 {[%emt 0:01:44]} b6 {[%emt 0:01:06]} 35. a5 {[%emt 0:01:33]} Nh4 {[%emt 0:00:22]} 36. axb6+ {[%emt 0:01:00]} cxb6 {[%emt 0:00:45]} 37. Qxg5 {[%emt 0:01:43]} Rg8 {[%emt 0:00:54]} 38. Qxh4 {[%emt 0:00:49]} Rxg4 {[%emt 0:00:07]} 39. Qh5 {[%emt 0:00:16]} Qxe4 {[%emt 0:02:13]} 40. Qf7+ {[%emt 0:01:08]} Kxa6 {[%emt 0:01:54]} 41. Qa2+ {[%emt 0:01:13]} Kb7 {[%emt 0:03:08]} 42. Rd4 {[%emt 0:00:27]} Qg6 {[%emt 0:01:03]} 43. Rf7+ {[%emt 0:01:11]} Rc7 {[%emt 0:00:30]} 44. Rxf8 {[%emt 0:00:27]} 1-0

[Event "Turkish Youth Championships 2023"]
[Site "Samsun"]
[Date "2023.05.22"]
[Round "6.19"]
[White "Yilmaz, Oguz"]
[Black "Turker, Esat Tuna"]
[Result "0-1"]
[WhiteElo "1520"]
[BlackElo "1713"]
[Annotator "COMBH"]
[PlyCount "82"]
[EventDate "2023.05.19"]
[EventType "swiss"]
[EventCountry "TUR"]
[TimeControl "5400+30"]
[WhiteClock "0:00:55"]

1. e4 {[%emt 0:01:00]} c5 {[%emt 0:01:00]} 2. Nf3 {[%emt 0:00:30]} a6 {[%emt 0:00:30]} 3. c3 {[%emt 0:00:30]} e6 {[%emt 0:00:30]} 4. d4 {[%emt 0:00:30]} d5 {[%emt 0:00:00]} 5. e5 {[%emt 0:00:00]} Bd7 {[%emt 0:00:00]} 6. a4 {[%emt 0:09:00]} Nc6 {[%emt 0:00:00]} 7. Be2 {[%emt 0:05:30]} Qb6 {[%emt 0:08:00]} 8. O-O {[%emt 0:00:30]} Nge7 {[%emt 0:03:30]} 9. Na3 {[%emt 0:16:30]} h5 {[%emt 0:05:30]} 10. Rb1 {[%emt 0:13:30]} Nf5 {[%emt 0:04:30]} 11. Be3 {[%emt 0:07:30]} Nxe3 {[%emt 0:01:30]} 12. fxe3 {[%emt 0:05:30]} Be7 {[%emt 0:00:30]} 13. Kh1 {[%emt 0:03:30]} h4 {[%emt 0:12:30]} 14. Qd2 {[%emt 0:06:30]} Nd8 {[%emt 0:11:30]} 15. e4 {[%emt 0:06:30]} h3 {[%emt 0:10:30]} 16. g3 {[%emt 0:00:30]} Bc6 {[%emt 0:15:30]} 17. Qe3 {[%emt 0:09:05]} dxe4 {[%emt 0:03:55]} 18. Nd2 {[%emt 0:01:09]} Bd5 {[%emt 0:05:12]} 19. Nxe4 {[%emt 0:01:53]} Nc6 {[%emt 0:01:14]} 20. Nc2 {[%emt 0:03:52]} cxd4 {[%emt 0:00:32]} 21. cxd4 {[%emt 0:01:03]} Nxe5 {[%emt 0:04:29]} 22. Kg1 {[%emt 0:02:22]} Ng6 {[%emt 0:03:19]} 23. b4 {[%emt 0:02:23]} O-O {[%emt 0:01:38]} 24. Nc3 {[%emt 0:00:51]} Bg2 {[%emt 0:01:31]} 25. Rf2 {[%emt 0:00:49]} Rad8 {[%emt 0:01:06]} 26. Bf3 {[%emt 0:01:42]} Bxf3 {[%emt 0:00:20]} 27. Rxf3 {[%emt 0:00:00]} Bf6 {[%emt 0:00:33]} 28. a5 {[%emt 0:00:21]} Qc6 {[%emt 0:00:20]} 29. Rbf1 {[%emt 0:00:50]} Be7 {[%emt 0:01:27]} 30. R1f2 {[%emt 0:00:17]} Qc4 {[%emt 0:00:46]} 31. Na4 {[%emt 0:01:19]} Bxb4 {[%emt 0:01:25]} 32. Nb6 {[%emt 0:00:30]} Qb5 {[%emt 0:00:02]} 33. Nxb4 {[%emt 0:00:39]} Qxb4 {[%emt 0:00:03]} 34. d5 {[%emt 0:00:19]} exd5 {[%emt 0:00:27]} 35. Qg5 {[%emt 0:00:35]} Qe7 {[%emt 0:01:16]} 36. Qh5 {[%emt 0:00:24]} Qe1+ {[%emt 0:00:41]} 37. Rf1 {[%emt 0:00:02]} Qxa5 {[%emt 0:00:30]} 38. Nc4 {[%emt 0:00:24]} Qc5+ {[%emt 0:00:38]} 39. Ne3 {[%emt 0:00:04]} Rde8 {[%emt 0:01:01]} 40. Qg5 {[%emt 0:00:33]} Re5 {[%emt 0:00:24]} 41. Rf5 {[%emt 0:01:01]} Qxe3+ {[%emt 0:00:06]} 0-1

[Event "Turkish Youth Championships 2023"]
[Site "Samsun"]
[Date "2023.05.22"]
[Round "6.20"]
[White "Yilmaz, Atakan"]
[Black "Alagoz, Zumra Meryem"]
[Result "1/2-1/2"]
[WhiteElo "1446"]
[BlackElo "1699"]
[Annotator "COMBH"]
[PlyCount "121"]
[EventDate "2023.05.19"]
[EventType "swiss"]
[EventCountry "TUR"]
[TimeControl "5400+30"]
[BlackClock "0:02:29"]

1. e4 {[%emt 0:01:00]} e6 {[%emt 0:01:00]} 2. d4 {[%emt 0:01:30]} d5 {[%emt 0:00:30]} 3. exd5 {[%emt 0:00:30]} exd5 {[%emt 0:00:30]} 4. Bd3 {[%emt 0:00:30]} Nc6 {[%emt 0:02:30]} 5. Ne2 {[%emt 0:00:00]} Bg4 {[%emt 0:01:30]} 6. c3 {[%emt 0:01:00]} Bd6 {[%emt 0:01:30]} 7. f3 {[%emt 0:03:30]} Be6 {[%emt 0:02:30]} 8. Bf4 {[%emt 0:03:30]} Qd7 {[%emt 0:04:30]} 9. Bxd6 {[%emt 0:01:30]} Qxd6 {[%emt 0:00:30]} 10. Nd2 {[%emt 0:03:30]} Nge7 {[%emt 0:00:30]} 11. Qc2 {[%emt 0:00:30]} O-O-O {[%emt 0:15:30]} 12. O-O-O {[%emt 0:05:30]} h5 {[%emt 0:07:30]} 13. g3 {[%emt 0:05:30]} g6 {[%emt 0:02:30]} 14. Nf4 {[%emt 0:02:30]} Bf5 {[%emt 0:02:30]} 15. Ng2 {[%emt 0:07:30]} Bxd3 {[%emt 0:02:30]} 16. Qxd3 {[%emt 0:00:30]} Nf5 {[%emt 0:00:30]} 17. f4 {[%emt 0:04:30]} Na5 {[%emt 0:22:30]} 18. Rde1 {[%emt 0:06:30]} Rhe8 {[%emt 0:02:30]} 19. Ne3 {[%emt 0:00:30]} Nxe3 {[%emt 0:08:46]} 20. Rxe3 {[%emt 0:01:30]} Re6 {[%emt 0:01:59]} 21. Rhe1 {[%emt 0:00:30]} Rde8 {[%emt 0:00:20]} 22. b3 {[%emt 0:01:30]} Nc6 {[%emt 0:01:42]} 23. Nf3 {[%emt 0:00:30]} Rxe3 {[%emt 0:02:31]} 24. Rxe3 {[%emt 0:00:00]} Rxe3 {[%emt 0:00:15]} 25. Qxe3 {[%emt 0:00:00]} Qe7 {[%emt 0:00:32]} 26. Qd3 {[%emt 0:01:30]} a6 {[%emt 0:03:14]} 27. Ne5 {[%emt 0:12:30]} Nxe5 {[%emt 0:00:49]} 28. dxe5 {[%emt 0:00:30]} Qc5 {[%emt 0:00:44]} 29. h4 {[%emt 0:01:30]} Qg1+ {[%emt 0:01:57]} 30. Kb2 {[%emt 0:00:30]} c6 {[%emt 0:03:47]} 31. b4 {[%emt 0:01:30]} Kd7 {[%emt 0:00:39]} 32. c4 {[%emt 0:02:30]} Ke6 {[%emt 0:00:43]} 33. cxd5+ {[%emt 0:00:30]} cxd5 {[%emt 0:00:01]} 34. Qc3 {[%emt 0:01:30]} Qf2+ {[%emt 0:02:43]} 35. Kb3 {[%emt 0:00:30]} Kf5 {[%emt 0:00:28]} 36. Qd3+ {[%emt 0:03:30]} Ke6 {[%emt 0:01:09]} 37. a4 {[%emt 0:01:30]} Qe1 {[%emt 0:01:48]} 38. b5 {[%emt 0:01:30]} axb5 {[%emt 0:00:30]} 39. axb5 {[%emt 0:00:30]} Qa5 {[%emt 0:00:38]} 40. Qe2 {[%emt 0:01:30]} Qb6 {[%emt 0:01:24]} 41. g4 {[%emt 0:00:30]} Qd4 {[%emt 0:00:38]} 42. f5+ {[%emt 0:02:30]} gxf5 {[%emt 0:00:36]} 43. gxf5+ {[%emt 0:00:30]} Kxf5 {[%emt 0:00:04]} 44. Qxh5+ {[%emt 0:00:30]} Ke6 {[%emt 0:00:15]} 45. Qh8 {[%emt 0:01:30]} Qxe5 {[%emt 0:00:34]} 46. Qc8+ {[%emt 0:00:30]} Kf6 {[%emt 0:00:37]} 47. Qxb7 {[%emt 0:00:30]} Qe3+ {[%emt 0:00:15]} 48. Kb4 {[%emt 0:00:30]} d4 {[%emt 0:00:21]} 49. Qc6+ {[%emt 0:00:30]} Kg7 {[%emt 0:00:39]} 50. b6 {[%emt 0:01:30]} d3 {[%emt 0:00:24]} 51. b7 {[%emt 0:00:30]} Qf4+ {[%emt 0:00:54]} 52. Ka5 {[%emt 0:06:02]} d2 {[%emt 0:01:08]} 53. Qc3+ {[%emt 0:00:02]} Kh6 {[%emt 0:00:48]} 54. Qc2 {[%emt 0:08:30]} Qd4 {[%emt 0:00:29]} 55. b8=Q {[%emt 0:01:51]} d1=Q {[%emt 0:00:06]} 56. Qf8+ {[%emt 0:00:00]} Kh5 {[%emt 0:00:19]} 57. Qh7+ {[%emt 0:00:39]} Kg4 {[%emt 0:00:15]} 58. Qfg8+ {[%emt 0:01:00]} Kh3 {[%emt 0:00:15]} 59. Qc8+ {[%emt 0:01:42]} Q1g4 {[%emt 0:00:35]} 60. Qxg4+ {[%emt 0:01:02]} Kxg4 {[%emt 0:00:24]} 61. Qxf7 {[%emt 0:00:27]} 1/2-1/2

[Event "Turkish Youth Championships 2023"]
[Site "Samsun"]
[Date "2023.05.23"]
[Round "7.1"]
[White "Engin, Onur Cinar"]
[Black "Isik, Alparslan"]
[Result "1/2-1/2"]
[ECO "B22"]
[WhiteElo "1922"]
[BlackElo "2451"]
[Annotator "TA"]
[PlyCount "108"]
[EventDate "2023.05.19"]
[EventType "swiss"]
[EventCountry "TUR"]
[SourceTitle "playchess.com"]
[Source "ChessBase"]
[SourceQuality "1"]
[TimeControl "5400+30"]

{[%evp 16,108,0,0,0,0,0,0,9,9,10,10,0,1,28,31,59,23,31,12,22,16,100,96,153,161,166,160,179,179,179,179,179,170,181,139,175,175,185,177,168,149,145,111,145,130,137,137,123,59,59,42,47,37,37,37,37,0,0,0,0,0,0,0,0,0,0,0,0,0,0,0,0,0,0,0,0,0,158,0,0,0,0,0,0,0,0,0,0,0,0,0,0,0,0]} 1. e4 {[%emt 0:01:00][%cal Be2e4,Be4e5][%mdl 32]} c5 {[%emt 0:01:00]} 2. c3 {[%emt 0:00:30]} Nf6 {[%emt 0:00:30]} 3. e5 {[%emt 0:00:30]} Nd5 {[%emt 0:00:30]} 4. Nf3 {[%emt 0:00:30]} Nc6 {[%emt 0:00:30]} 5. d4 {[%emt 0:00:30]} cxd4 {[%emt 0:00:30]} 6. cxd4 {[%emt 0:00:30]} d6 {[%emt 0:00:30]} 7. Bc4 {[%emt 0:00:30]} dxe5 {[%emt 0:00:00]} 8. Nxe5 {[%emt 0:00:30]} e6 {[%emt 0:00:00]} 9. O-O {[%emt 0:02:30]} Be7 {[%emt 0:00:00][%cal Bf8e7,Be7f6,Bf6e5][%mdl 32] B22: Sicilian: 2 c3.} 10. Qg4 {[%emt 0:00:30]} O-O {[%emt 0:02:00]} 11. Rd1 {[%emt 0:03:30]} Bf6 {[%emt 0:04:30]} 12. Nxc6 {[%emt 0:01:30]} bxc6 {[%emt 0:00:00] [#]} 13. Nc3 $146 {[%emt 0:01:30]} ({Predecessor:} 13. Qe4 Bb7 14. Qe2 c5 15. dxc5 Qa5 16. Bxd5 exd5 17. Nc3 Qxc5 18. Qb5 Qxb5 19. Nxb5 {½-½ Van der Lende,I (2350)-Stella,A (2511) Andorra op 37th 2019 (6)}) 13... e5 {[%emt 0:03:00]} 14. Qf3 {[%emt 0:01:30][%cal Rc3d5]} Nxc3 {[%emt 0:10:30]} 15. bxc3 {[%emt 0:01:30] And now dxe5 would win.} Qa5 {[%emt 0:10:30]} 16. dxe5 {[%emt 0:10:30]} ({Much worse is} 16. Qxc6 Bg4 17. Be3 (17. f3 Rac8 $17) 17... Bxd1 18. Rxd1 Rac8 $17) 16... Bxe5 {[%emt 0:01:30][%cal Oc8f5]} 17. Bf4 {[%emt 0:17:30]} ({Reject} 17. Qxc6 Bg4 18. Bxf7+ Kh8 $17) 17... Qxc3 {[%emt 0:04:30]} (17... Bxf4 {simplifies} 18. Qxf4 Bf5 19. Qf3 Rae8) 18. Qxc6 {[%emt 0:10:30]} Be6 {[%emt 0:24:30] [#]} (18... Bg4 $11 19. Bxe5 Qxe5) 19. Rac1 $1 $36 {[%emt 0:06:30][%mdl 2048] White is in control.} Rac8 {[%emt 0:05:30] [#]} (19... Qa5 $142 20. Bd2 Qb6 21. Bxe6 fxe6) 20. Qxe6 $3 {[%emt 0:04:30][%mdl 512]} fxe6 {[%emt 0:01:30]} 21. Rxc3 {[%emt 0:00:30]} Bxc3 {[%emt 0:00:30]} 22. Bxe6+ {[%emt 0:00:30] A strong pair of Bishops.} Kh8 {[%emt 0:00:00] ...Rce8 is the strong threat.} 23. Bxc8 {[%emt 0:00:00]} Rxc8 $18 {[%emt 0:00:00][%mdl 4096] Endgame KRB-KRB} 24. Rb1 {[%emt 0:05:00]} Kg8 {[%emt 0:04:30]} 25. Kf1 {[%emt 0:07:30]} Bd4 {[%emt 0:06:30] [#]} 26. Rb8 $1 {[%emt 0:01:30]} Rxb8 {[%emt 0:00:30]} 27. Bxb8 {[%emt 0:00:30] KB-KB} Kf7 {[%emt 0:00:00]} 28. Ke2 {[%emt 0:00:00]} Ke6 {[%emt 0:00:00]} 29. f3 {[%emt 0:01:00]} h5 {[%emt 0:02:14]} 30. Kd3 {[%emt 0:00:30]} Kd5 {[%emt 0:00:01]} 31. Bf4 {[%emt 0:01:30]} a6 {[%emt 0:00:15]} 32. h4 {[%emt 0:02:28]} (32. h3 $16) 32... g6 $14 {[%emt 0:00:30]} 33. g4 {[%emt 0:00:47]} Bf6 {[%emt 0:07:26]} 34. gxh5 {[%emt 0:00:55]} gxh5 {[%emt 0:00:02]} 35. Bg5 {[%emt 0:00:21]} Bd4 {[%emt 0:00:03]} 36. f4 {[%emt 0:01:09]} Bg7 {[%emt 0:01:19]} 37. Bd8 {[%emt 0:04:14]} Bh8 {[%emt 0:00:27]} 38. f5 {[%emt 0:02:19]} Ke5 {[%emt 0:00:14]} 39. f6 {[%emt 0:00:01][%mdl 64] Deflection} Bxf6 {[%emt 0:00:04]} 40. Bxf6+ {[%emt 0:00:36]} Kxf6 $11 {[%emt 0:00:30] KPP-KPP} 41. Ke4 {[%emt 0:00:41]} a5 {[%emt 0:01:04]} 42. Kf4 {[%emt 0:02:37]} a4 {[%emt 0:00:30]} 43. a3 {[%emt 0:00:30]} Ke6 {[%emt 0:00:00]} 44. Kg5 {[%emt 0:00:58]} Ke5 {[%emt 0:00:00]} 45. Kg6 {[%emt 0:01:01]} Ke6 {[%emt 0:00:24]} 46. Kxh5 {[%emt 0:00:30] White wants to mate with Kg6. KPP-KP} Kf5 {[%emt 0:00:00]} 47. Kh6 {[%emt 0:00:00]} Kf6 $1 {[%emt 0:00:12] The position is equal.} 48. h5 {[%emt 0:00:00]} Kf7 $1 {[%emt 0:00:00]} 49. Kg5 {[%emt 0:00:24]} Kg7 {[%emt 0:00:00]} 50. Kf4 {[%emt 0:00:22]} Kh6 {[%emt 0:00:07]} 51. Ke4 {[%emt 0:00:30]} Kxh5 {[%emt 0:00:30]} 52. Kd4 {[%emt 0:00:30]} Kg6 {[%emt 0:00:30]} 53. Kc5 {[%emt 0:00:00]} Kf7 {[%emt 0:00:00]} 54. Kb4 {[%emt 0:00:00]} Ke8 {[%emt 0:00:00] Black defended with fortune.   Weighted Error Value: White=0.06 (flawless) /Black=0.15 (very precise)} 1/2-1/2

[Event "Turkish Youth Championships 2023"]
[Site "Samsun"]
[Date "2023.05.23"]
[Round "7.2"]
[White "Akbas, Umut Ata"]
[Black "Tarlabasi, Emirhan"]
[Result "0-1"]
[ECO "D02"]
[WhiteElo "2417"]
[BlackElo "2300"]
[Annotator "TA"]
[PlyCount "92"]
[EventDate "2023.05.19"]
[EventType "swiss"]
[EventCountry "TUR"]
[SourceTitle "playchess.com"]
[Source "ChessBase"]
[SourceQuality "1"]
[TimeControl "5400+30"]

{[%evp 9,92,3,25,25,16,10,0,0,0,0,14,0,6,0,0,0,16,13,10,0,34,0,0,0,0,-23,-55,-36,0,0,0,0,0,0,0,-40,0,-139,-142,-125,0,0,15,4,20,11,19,0,0,0,0,0,0,-10,-15,-108,-90,-64,-28,-77,0,-175,-163,-210,-208,-200,-204,-206,-200,-206,-216,-202,-213,-208,-157,-157,-148,-161,0,-566,-490,-29995,-29996,-29998,-29999]} 1. d4 {[%emt 0:01:00]} d5 {[%emt 0:01:00]} 2. Nf3 {[%emt 0:00:30]} Nf6 {[%emt 0:00:30]} 3. Bf4 {[%emt 0:00:30]} e6 {[%emt 0:00:30]} 4. e3 {[%emt 0:00:30]} c5 {[%emt 0:00:30]} 5. Nbd2 {[%emt 0:00:30]} Bd6 {[%emt 0:00:30]} 6. dxc5 {[%emt 0:00:00] D02: 1 d4 d5 2 Nf3 sidelines, including 2...Nf6 3 g3 and 2...Nf6 3 Bf4.} Bxc5 {[%emt 0:05:30]} 7. c4 {[%emt 0:00:00]} O-O {[%emt 0:03:30]} 8. Be2 {[%emt 0:00:30] The position is equal.} b6 {[%emt 0:04:30]} 9. O-O {[%emt 0:01:30]} Bb7 {[%emt 0:01:30]} 10. a3 {[%emt 0:01:30] [#]} Nbd7 $146 {[%emt 0:08:30]} ({Predecessor:} 10... Nc6 11. b4 Be7 12. Qb3 a5 13. b5 a4 14. Qb2 Na5 15. Rfd1 Nd7 16. Rac1 Bf6 {1-0 Wojtaszek,R (2696)-Gelfand,B (2668) Julius Baer GenCup Prelim rapid 2022 (9)}) 11. cxd5 {[%emt 0:02:30]} Nxd5 {[%emt 0:03:30]} 12. Bg3 {[%emt 0:00:30]} Be7 {[%emt 0:05:30]} 13. Rc1 {[%emt 0:09:30]} Rc8 {[%emt 0:02:30]} 14. Nc4 {[%emt 0:17:30]} N7f6 {[%emt 0:07:30]} 15. Nfd2 {[%emt 0:02:30]} b5 {[%emt 0:05:30]} 16. Ne5 {[%emt 0:00:30]} a6 {[%emt 0:02:30]} 17. a4 {[%emt 0:13:30]} Rxc1 {[%emt 0:06:30]} 18. Qxc1 {[%emt 0:00:30]} Qb6 {[%emt 0:04:30][%cal Od5e3] And now ...Nxe3! would win.} 19. axb5 {[%emt 0:07:30]} axb5 {[%emt 0:00:30][%cal Od5e3]} 20. Bf3 {[%emt 0:02:30]} Rc8 {[%emt 0:01:30]} 21. Qb1 {[%emt 0:00:30]} Nb4 {[%emt 0:02:30]} 22. Ne4 {[%emt 0:06:30]} Nfd5 {[%emt 0:12:54]} 23. h4 {[%emt 0:07:30]} (23. Rd1 $11) 23... f6 $1 $17 {[%emt 0:04:56]} 24. Nd3 {[%emt 0:01:30]} Nxd3 {[%emt 0:01:19]} (24... Nxe3 $1 $17 25. Nxf6+ gxf6 26. fxe3 Be4 {[%mdl 64] Decoy} 27. Bxe4 Qxe3+ 28. Kh2 Qxe4 29. Nxb4 Qxb1 30. Rxb1 Bxb4) 25. Qxd3 $11 {[%emt 0:00:30]} b4 {[%emt 0:01:26] Strongly threatening ...Ba6.} 26. Ra1 {[%emt 0:02:30] Repels Ba6} f5 {[%emt 0:01:06]} 27. Nd2 {[%emt 0:01:30]} Bf6 {[%emt 0:00:20]} 28. Ra2 {[%emt 0:02:55]} Qc5 {[%emt 0:04:22]} 29. b3 {[%emt 0:10:29]} Qc3 {[%emt 0:00:57]} 30. Qb5 {[%emt 0:03:39]} Bc6 {[%emt 0:00:43]} (30... Qc1+ {is interesting.} 31. Kh2 Bc6 32. Qc4 Qxc4 33. Nxc4 Nc3) 31. Qf1 {[%emt 0:00:02]} h6 {[%emt 0:02:45]} 32. Be2 {[%emt 0:03:50]} (32. e4 $11 {remains equal.} Ne7 33. Qe2) 32... Qc5 $1 $17 {[%emt 0:04:44] Black is much more active.} 33. Bc4 {[%emt 0:00:34]} Re8 {[%emt 0:01:24]} 34. Qd3 {[%emt 0:01:42]} (34. Ra6 $11 {was preferrable.}) 34... Kh8 {[%emt 0:00:24]} ({Black should play} 34... Rd8 $1 $17 {White must now prevent ...Nc3.} 35. Qc2 Nc3) 35. Ra6 $2 {[%emt 0:00:00] [#]} (35. Nf3 $1 $11) 35... Rd8 $1 $19 {[%emt 0:00:44][%cal Od5c7]} 36. Qe2 {[%emt 0:00:45]} (36. e4 $142 Nc7 {[%mdl 64] Discovered Attack} 37. Rxc6 Qxc6 38. Qe2) 36... Nc3 {[%emt 0:00:52]} 37. Qe1 {[%emt 0:00:01]} e5 {[%emt 0:00:21]} 38. Ra1 {[%emt 0:00:22]} Qd6 {[%emt 0:00:24]} 39. Nf3 {[%emt 0:01:02]} f4 {[%emt 0:00:26]} 40. Bh2 {[%emt 0:00:28]} Bxf3 {[%emt 0:00:55]} 41. gxf3 {[%emt 0:00:04]} Bxh4 {[%emt 0:00:19]} 42. exf4 {[%emt 0:00:13]} exf4 {[%emt 0:00:58] ...Nd1 is the strong threat.} 43. Ra6 {[%emt 0:00:13] [#]} Qc7 {[%emt 0:00:08]} ({Better is} 43... Qc5 $1 $19 {( -> ...Rd1)} 44. Ra1 Bg3) 44. Qe6 $2 {[%emt 0:00:34][%mdl 8192]} (44. Kg2 $11 {and White has nothing to worry.}) 44... Qc5 {[%emt 0:00:17]} 45. Kg2 {[%emt 0:01:58]} (45. Qg4 $19 Qxf2+ 46. Kh1) 45... Qxf2+ {[%emt 0:00:30]} 46. Kh3 {[%emt 0:00:00]} Qxf3+ {[%emt 0:00:00] An entertaining game by Tarlabasi.   Weighted Error Value: White=0.52/Black=0.16 (very precise)} 0-1

[Event "Turkish Youth Championships 2023"]
[Site "Samsun"]
[Date "2023.05.23"]
[Round "7.3"]
[White "Cilek, Bora"]
[Black "Demirbas, Emre"]
[Result "1/2-1/2"]
[ECO "A07"]
[WhiteElo "2285"]
[BlackElo "2013"]
[Annotator "TA"]
[PlyCount "63"]
[EventDate "2023.05.19"]
[EventType "swiss"]
[EventCountry "TUR"]
[SourceTitle "playchess.com"]
[Source "ChessBase"]
[SourceQuality "1"]
[TimeControl "5400+30"]

{[%evp 9,63,12,16,0,1,-2,11,0,27,10,27,-8,44,-4,20,-19,0,0,-8,-26,-19,-24,14,18,10,7,17,10,0,-30,-15,-11,-12,-34,0,0,0,-15,0,0,0,0,0,0,11,0,0,0,7,0,0,0,0,0,0,0]} 1. Nf3 {[%emt 0:09:00]} d5 {[%emt 0:01:00]} 2. g3 {[%emt 0:00:30]} Bg4 {[%emt 0:00:30]} 3. Bg2 {[%emt 0:01:30]} Nd7 {[%emt 0:01:30]} 4. c4 {[%emt 0:00:30]} e6 {[%emt 0:00:30]} 5. cxd5 {[%emt 0:01:30]} exd5 {[%emt 0:00:00]} 6. d3 {[%emt 0:00:30] A07: Réti Opening: New York and Capablanca Systems.} Ngf6 {[%emt 0:01:00]} 7. O-O {[%emt 0:00:00][%cal Oe2e4]} Be7 {[%emt 0:03:30]} 8. Nc3 {[%emt 0:00:00]} O-O {[%emt 0:00:30]} 9. Qc2 {[%emt 0:01:30]} Nc5 {[%emt 0:08:30]} 10. h3 {[%emt 0:05:30] [#]} Bh5 $146 {[%emt 0:02:30]} ({Black should try} 10... Bxf3 $11 11. Bxf3 c6) ({Predecessor:} 10... Be6 11. Nd4 Qd7 12. Kh2 c6 13. f4 g6 14. b4 Na6 15. a3 c5 16. bxc5 Bxc5 {1-0 Dinh,D (2380)-Ngo,N (2325) VIE-ch playoff 2003 (13)}) 11. Nd4 {[%emt 0:04:30]} (11. Ne5 $14) 11... Bg6 {[%emt 0:06:30]} 12. b4 {[%emt 0:03:30]} Ne6 {[%emt 0:01:30]} 13. Nxe6 {[%emt 0:00:30]} fxe6 {[%emt 0:00:30]} 14. Qb3 {[%emt 0:04:30]} Bf7 {[%emt 0:01:30]} 15. d4 {[%emt 0:06:30]} Qd6 {[%emt 0:06:30]} (15... c6 $5 {[%cal Rd8b6]}) 16. a3 {[%emt 0:04:30]} e5 {[%emt 0:02:30]} 17. dxe5 {[%emt 0:02:30]} Qxe5 {[%emt 0:00:30]} 18. Bf4 {[%emt 0:00:30] Against d4} Qf5 {[%emt 0:00:30]} 19. Nb5 {[%emt 0:10:30]} (19. Bxc7 $2 {loses.} d4 20. Qb1 Qd7 $19) 19... c6 {[%emt 0:00:30]} 20. Nd4 {[%emt 0:04:30]} Qd7 {[%emt 0:00:30]} 21. Rad1 {[%emt 0:02:30]} Bd6 {[%emt 0:05:30]} (21... Ne4 {feels hotter.} 22. g4 Bg6 23. Be5 a5) 22. Bxd6 {[%emt 0:06:30] The position is equal.} Qxd6 {[%emt 0:00:00]} 23. Qc3 {[%emt 0:02:30]} Bg6 {[%emt 0:03:00]} 24. Qc5 {[%emt 0:04:30]} Qxc5 {[%emt 0:11:30]} 25. bxc5 {[%emt 0:00:30]} Nd7 {[%emt 0:01:30][%cal Bf6d7,Bd7e5,Be5c4][%mdl 32]} 26. Rc1 {[%emt 0:01:30]} Rae8 {[%emt 0:01:30]} 27. Rc3 {[%emt 0:03:41]} Re7 {[%emt 0:04:30]} 28. Rfc1 {[%emt 0:02:52]} Ne5 {[%emt 0:01:30]} 29. Re3 {[%emt 0:05:55] [#] Black must now prevent f4.} Rff7 {[%emt 0:01:30]} 30. Bf1 {[%emt 0:01:35]} Nc4 {[%emt 0:06:30]} 31. Rxe7 {[%emt 0:00:30]} Rxe7 {[%emt 0:00:00]} 32. e3 {[%emt 0:00:08] Not much happened in this game.   Weighted Error Value: White=0.09 (flawless) /Black=0.11 (very precise)} 1/2-1/2